fUSD/lending_fUSD_20240409
["ID","MTS","AMOUNT","RATE_DAILY","PERIOD"]
[322018356,1712689852245,-500.0,0.00020821,2]
[322018357,1712689852255,-500.0,0.00020821,2]
[322018358,1712689852267,-500.0,0.00020821,2]
[322018359,1712689852281,-500.0,0.00020821,2]
[322018360,1712689852291,-500.0,0.00020821,2]
[322018361,1712689852301,-500.0,0.00020821,2]
[322018362,1712689852311,-1416.38,0.00020821,2]
[322018363,1712689852321,-680.7,0.00020821,2]
[322018364,1712689852331,-1213.14,0.00020821,2]
[322018365,1712689852340,-500.0,0.00020821,2]
[322018366,1712689852350,-500.0,0.00020821,2]
[322018367,1712689852361,-165.85585407,0.00020821,2]
[322018368,1712689852371,-500.0,0.00020821,2]
[322018369,1712689852381,-1021.99,0.00020821,2]
[322018370,1712689852390,-688.68,0.00020821,2]
[322018371,1712689852403,-500.0,0.00020821,2]
[322018372,1712689852413,-500.0,0.00020821,2]
[322018373,1712689852423,-3446.09,0.00020821,2]
[322018374,1712689852433,-500.0,0.00020821,2]
[322018375,1712689852445,-5584.22,0.00020821,2]
[322018376,1712689852455,-500.0,0.00020821,2]
[322018377,1712689852466,-500.0,0.00020821,2]
[322018378,1712689852476,-500.0,0.00020821,2]
[322018379,1712689852487,-500.0,0.00020821,2]
[322018380,1712689852498,-558.6,0.00020821,2]
[322018381,1712689852507,-516.33,0.00020821,2]
[322018382,1712689852517,-500.0,0.00020821,2]
[322018383,1712689852527,-1788.24,0.00020821,2]
[322018384,1712689852537,-500.0,0.00020821,2]
[322018385,1712689852546,-500.0,0.00020821,2]
[322018386,1712689852556,-500.0,0.00020821,2]
[322018387,1712689852565,-500.0,0.00020821,2]
[322018388,1712689852574,-500.0,0.00020821,2]
[322018389,1712689852583,-1714.1,0.00020821,2]
[322018390,1712689852592,-500.0,0.00020821,2]
[322018391,1712689852602,-500.0,0.00020821,2]
[322018392,1712689852611,-500.0,0.00020821,2]
[322018393,1712689852620,-957.64,0.00020821,2]
[322018394,1712689852630,-500.0,0.00020821,2]
[322018395,1712689852639,-500.0,0.00020821,2]
[322018396,1712689852651,-500.0,0.00020821,2]
[322018397,1712689852661,-500.0,0.00020821,2]
[322018398,1712689852670,-953.64,0.00020821,2]
[322018399,1712689852679,-549.91,0.00020821,2]
[322018400,1712689852689,-568.78,0.00020821,2]
[322018401,1712689852698,-550.06,0.00020821,2]
[322018402,1712689852708,-500.0,0.00020821,2]
[322018403,1712689852717,-823.39,0.00020821,2]
[322018404,1712689852726,-500.0,0.00020821,2]
[322018405,1712689852735,-500.0,0.00020821,2]
[322018406,1712689852745,-571.44,0.00020821,2]
[322018407,1712689852754,-500.0,0.00020821,2]
[322018408,1712689852763,-500.0,0.00020821,2]
[322018409,1712689852772,-606.64,0.00020821,2]
[322018410,1712689852781,-500.0,0.00020821,2]
[322018411,1712689852791,-500.0,0.00020821,2]
[322018412,1712689852800,-500.0,0.00020821,2]
[322018413,1712689852809,-579.63,0.00020821,2]
[322018414,1712689852818,-500.0,0.00020821,2]
[322018415,1712689852827,-500.0,0.00020821,2]
[322018416,1712689852837,-500.0,0.00020821,2]
[322018417,1712689852846,-500.0,0.00020821,2]
[322018418,1712689852856,-500.0,0.00020821,2]
[322018419,1712689852865,-954.79,0.00020821,2]
[322018420,1712689852874,-864.96,0.00020821,2]
[322018421,1712689852883,-613.74,0.00020821,2]
[322018422,1712689852893,-730.86,0.00020821,2]
[322018423,1712689852905,-500.0,0.00020821,2]
[322018424,1712689852914,-1481.41,0.00020821,2]
[322018425,1712689852924,-926.66,0.00020821,2]
[322018426,1712689852934,-537.32,0.00020821,2]
[322018427,1712689852944,-500.0,0.00020821,2]
[322018428,1712689852953,-500.0,0.00020821,2]
[322018429,1712689852962,-500.0,0.00020821,2]
[322018430,1712689852971,-591.09,0.00020821,2]
[322018431,1712689852981,-545.86566125,0.00020821,2]
[322018432,1712689852991,-1351.58,0.00020821,2]
[322018433,1712689853000,-500.0,0.00020821,2]
[322018434,1712689853010,-500.0,0.00020821,2]
[322018435,1712689853019,-500.0,0.00020821,2]
[322018436,1712689853029,-858.69,0.00020821,2]
[322018437,1712689853038,-1534.66,0.00020821,2]
[322018438,1712689853047,-634.91,0.00020821,2]
[322018439,1712689853056,-500.0,0.00020821,2]
[322018440,1712689853065,-500.0,0.00020821,2]
[322018441,1712689853073,-500.0,0.00020821,2]
[322018442,1712689853082,-1000.0,0.00020831,2]
[322018443,1712689853091,-151.58120898,0.00020834,2]
[322018444,1712689853100,-150.0,0.00020857,2]
[322018445,1712689853111,-150.0,0.00020865,2]
[322018446,1712689853120,-160.0,0.00020882,2]
[322018447,1712689853129,-160.0,0.00020891,2]
[322018448,1712689853138,-1000.0,0.00020895,2]
[322018449,1712689853147,-1000.0,0.00020895,2]
[322018450,1712689853158,-1000.0,0.00020895,2]
[322018451,1712689853168,-1000.0,0.00020895,2]
[322018452,1712689853177,-1000.0,0.00020895,2]
[322018453,1712689853431,-1000.0,0.00020895,2]
[322018454,1712689853443,-1000.0,0.00020895,2]
[322018455,1712689853452,-1000.0,0.00020895,2]
[322018456,1712689853461,-1000.0,0.00020895,2]
[322018457,1712689853470,-1000.0,0.00020895,2]
[322018458,1712689853479,-1000.0,0.00020895,2]
[322018459,1712689853489,-1000.0,0.00020895,2]
[322018460,1712689853498,-1000.0,0.00020895,2]
[322018461,1712689853508,-1000.0,0.00020895,2]
[322018462,1712689853518,-1000.0,0.00020895,2]
[322018463,1712689853528,-1000.0,0.00020895,2]
[322018464,1712689853537,-1000.0,0.00020895,2]
[322018465,1712689853547,-1000.0,0.00020895,2]
[322018466,1712689853556,-1000.0,0.00020895,2]
[322018467,1712689853565,-1000.0,0.00020895,2]
[322018468,1712689853575,-1000.0,0.00020895,2]
[322018469,1712689853584,-1000.0,0.00020895,2]
[322018470,1712689853593,-1000.0,0.00020895,2]
[322018471,1712689853602,-1000.0,0.00020895,2]
[322018472,1712689853611,-263.6881,0.00020895,2]
[322018473,1712689853621,-500.0,0.00020895,2]
[322018474,1712689853630,-500.0,0.00020895,2]
[322018475,1712689853639,-500.0,0.00020895,2]
[322018476,1712689853649,-500.0,0.00020895,2]
[322018477,1712689853659,-500.0,0.00020895,2]
[322018478,1712689853668,-500.0,0.00020895,2]
[322018479,1712689853678,-505.7484,0.00020895,2]
[322018480,1712689853687,-10000.0,0.000209,2]
[322018481,1712689853697,-1859.57162693,0.000209,2]
[322018482,1712689853707,-160.0,0.000209,2]
[322018483,1712689853716,-500.0,0.000209,2]
[322018484,1712689853725,-339.58435605,0.000209,2]
[322018485,1712689853734,-155.97634313,0.000209,2]
[322018486,1712689853744,-14801.52721228,0.000209,2]
[322018487,1712689853753,-1000.0,0.000209,2]
[322018488,1712689853762,-150.0,0.00020908,2]
[322018489,1712689853771,-150.0,0.00020909,2]
[322018490,1712689853781,-150.0,0.00020929,2]
[322018491,1712689853790,-150.0,0.00020941,2]
[322018492,1712689853800,-150.0,0.00020946,2]
[322018493,1712689853810,-150.0,0.00020948,2]
[322018494,1712689853819,-177.79307,0.0002095,2]
[322018495,1712689853829,-8341.8764983,0.00020986,2]
[322018496,1712689853838,-9963.105996,0.00020986,2]
[322018497,1712689853847,-11584.3354936,0.00020986,2]
[322018498,1712689853857,-158.41058275,0.00020993,2]
[322018499,1712689853866,-1794.23380829,0.00020993,2]
[322018500,1712689853875,-286.42994072,0.00020993,2]
[322018501,1712689853885,-249.81395908,0.00020993,2]
[322018502,1712689853894,-214.69761119,0.00020994,2]
[322018503,1712689853905,-155.0,0.00020994,2]
[322018504,1712689853914,-38538.42897961,0.00020995,2]
[322018505,1712689853923,-1551.2676099,0.00020995,2]
[322018506,1712689853933,-462556.07576687,0.00021,2]
[322018507,1712689853942,-116340.58009198,0.00021,2]
[322018508,1712689853951,-714.86624918,0.00021,2]
[322018509,1712689853961,-500.0,0.00021,2]
[322018510,1712689853970,-4410858.1688587,0.00021,2]
[322018511,1712689854228,-732.08341435,0.00021,2]
[322018512,1712689854239,-2312.19029328,0.00021,2]
[322018513,1712689854251,-2082.73275927,0.00021,2]
[322018514,1712689854263,-13119.8153211,0.00021,2]
[322018515,1712689854416,410.913049,0.00017872,2]
[322018516,1712689854572,-155.0,0.00018313,2]
[322018517,1712689854582,-285.46840956,0.00018314,2]
[322018518,1712689854591,-257.86549205,0.00018314,2]
[322018519,1712689854602,-500.0,0.00019178,2]
[322018520,1712689854611,-869.45,0.00019178,2]
[322018521,1712689854622,-500.0,0.00019452,2]
[322018522,1712689854631,-869.45,0.00019452,2]
[322018523,1712689854640,-11070.54530754,0.00021,2]
[322018524,1712689854694,-869.45,0.00019726,2]
[322018525,1712689854704,-1720780.54999976,0.00021,2]
[322018526,1712689854719,-87382.29058009,0.00021,2]
[322018527,1712689855319,-155.0,0.00018313,2]
[322018528,1712689855329,-467.47866,0.00019178,2]
[322018529,1712689855470,-32.52134,0.00019178,2]
[322018530,1712689855480,-500.0,0.00019178,2]
[322018531,1712689855490,-500.0,0.00019452,2]
[322018532,1712689855500,-500.0,0.00019452,2]
[322018533,1712689855509,-260.97566914,0.00019726,2]
[322018534,1712689855518,-150.0,0.00019835,2]
[322018535,1712689855527,-869.45,0.0002,2]
[322018536,1712689855538,-869.45,0.00020273,2]
[322018537,1712689855547,-869.45,0.00020547,2]
[322018538,1712689855556,-869.45,0.00020821,2]
[322018539,1712689855565,-1195830.53125579,0.00021,2]
[322018540,1712689855685,-500.0,0.00019178,2]
[322018541,1712689855694,-500.0,0.00019726,2]
[322018542,1712689855703,-500.0,0.0002,2]
[322018543,1712689855712,-500.0,0.00020273,2]
[322018544,1712689855721,-85.2689939,0.00021,2]
[322018545,1712689855800,677.85239771,0.0003,120]
[322018546,1712689857054,155.0,0.00017871,2]
[322018547,1712689870097,300.0,0.00017949,2]
[322018548,1712689875666,677.85239771,0.0003,120]
[322018549,1712689893668,677.85239771,0.0003,120]
[322018550,1712689909672,677.85239771,0.0003,120]
[322018551,1712689931673,677.85239771,0.0003,120]
[322018553,1712689949673,677.85239771,0.0003,120]
[322018554,1712689965703,723.25114265,0.0003,120]
[322018555,1712690020294,212.57812478,0.0002739,30]
[322018556,1712690162773,9997.05634631,0.0003001,28]
[322018559,1712690212725,20003.0,0.0003,29]
[322018561,1712690239017,711.00719969,0.0003,30]
[322018563,1712690260434,366.53,0.00016786,2]
[322018566,1712690568388,2000.0,0.0003,30]
[322018567,1712690834211,348.2,0.00016375,2]
[322018586,1712691032097,-155.0,0.00018172,2]
[322018587,1712691032106,-215.55482401,0.00018173,2]
[322018588,1712691032116,-325.03814807,0.00018173,2]
[322018589,1712691032125,-2228.04,0.00018174,2]
[322018590,1712691032135,-24593.31393343,0.00018215,2]
[322018591,1712691032166,-318.64159543,0.00018215,2]
[322018592,1712691032218,-412.99451058,0.00018215,2]
[322018593,1712691032229,-6012.91512757,0.00018215,2]
[322018594,1712691032333,-24611.59003299,0.00018215,2]
[322018595,1712691032344,-216.45,0.00018297,2]
[322018596,1712691032354,-321.51134969,0.00018313,2]
[322018597,1712691032363,-625.0,0.00018348,2]
[322018598,1712691032374,-625.0,0.00018348,2]
[322018599,1712691032383,-729.66,0.00018357,2]
[322018600,1712691032393,-340.29,0.00018374,2]
[322018601,1712691032402,-348.2,0.00018639,2]
[322018602,1712691032411,-207.93,0.00018845,2]
[322018603,1712691032420,-150.0,0.00018888,2]
[322018604,1712691032430,-160.01617388,0.00018888,2]
[322018605,1712691032439,-183.96934082,0.00018888,2]
[322018606,1712691032449,-153.6094394,0.00018888,2]
[322018607,1712691032458,-659.71,0.0001894,2]
[322018608,1712691032468,-499.99,0.00018994,2]
[322018609,1712691032478,-233.85503616,0.00019,2]
[322018610,1712691032487,-1250.0,0.00019,3]
[322018611,1712691032496,-167.35,0.00019046,2]
[322018612,1712691032505,-532.26647689,0.00019078,2]
[322018613,1712691032515,-3854.93240704,0.00019078,2]
[322018614,1712691032524,-791.9220906,0.00019078,2]
[322018615,1712691032534,-263.5042,0.00019078,2]
[322018616,1712691032544,-2500.0,0.00019078,2]
[322018617,1712691032553,-210.0107731,0.00019176,2]
[322018618,1712691032563,-180.65093976,0.00019176,2]
[322018619,1712691032572,-709.82548608,0.00019177,2]
[322018620,1712691032582,-322.34686166,0.00019177,2]
[322018621,1712691032595,-500.0,0.00019178,2]
[322018622,1712691032604,-164.59158464,0.00019178,2]
[322018623,1712691032614,-500.0,0.00019178,2]
[322018624,1712691032623,-509.62,0.00019178,2]
[322018625,1712691032632,-637.7,0.00019178,2]
[322018626,1712691032642,-500.0,0.00019178,2]
[322018627,1712691032651,-634.32,0.00019178,2]
[322018628,1712691032660,-500.0,0.00019178,2]
[322018630,1712691032669,-500.0,0.00019178,2]
[322018631,1712691032679,-500.0,0.00019178,2]
[322018633,1712691032687,-501.96,0.00019178,2]
[322018635,1712691032696,-500.0,0.00019178,2]
[322018636,1712691032705,-500.0,0.00019178,2]
[322018637,1712691032714,-500.0,0.00019178,2]
[322018638,1712691032723,-500.0,0.00019178,2]
[322018639,1712691032732,-621.55091426,0.00019178,2]
[322018640,1712691032741,-563.97244014,0.00019178,2]
[322018641,1712691032751,-500.0,0.00019178,2]
[322018642,1712691032760,-328.66898153,0.00019178,2]
[322018643,1712691032770,-500.0,0.00019178,2]
[322018644,1712691032779,-500.0,0.00019178,2]
[322018645,1712691032789,-296.91,0.00019178,2]
[322018646,1712691032798,-500.0,0.00019178,2]
[322018647,1712691032807,-158.06,0.00019178,2]
[322018648,1712691032817,-500.0,0.00019178,2]
[322018649,1712691032826,-500.0,0.00019178,2]
[322018650,1712691032836,-500.0,0.00019178,2]
[322018651,1712691032847,-500.0,0.00019178,2]
[322018652,1712691032856,-271.90438315,0.00019178,2]
[322018653,1712691032865,-500.0,0.00019178,2]
[322018654,1712691032875,-500.0,0.00019178,2]
[322018655,1712691032884,-500.0,0.00019178,2]
[322018656,1712691032893,-500.0,0.00019178,2]
[322018657,1712691032903,-500.0,0.00019178,2]
[322018658,1712691032912,-500.0,0.00019178,2]
[322018659,1712691032921,-500.0,0.00019178,2]
[322018660,1712691032930,-500.0,0.00019178,2]
[322018661,1712691032940,-500.0,0.00019178,2]
[322018662,1712691032949,-265.05,0.00019178,2]
[322018663,1712691032958,-500.0,0.00019178,2]
[322018664,1712691032968,-500.0,0.00019178,2]
[322018665,1712691032978,-500.0,0.00019178,2]
[322018666,1712691032987,-500.0,0.00019178,2]
[322018667,1712691032997,-500.0,0.00019178,2]
[322018668,1712691033006,-500.0,0.00019178,2]
[322018669,1712691033015,-500.0,0.00019178,2]
[322018670,1712691033024,-500.0,0.00019178,2]
[322018671,1712691033033,-595.51,0.00019178,2]
[322018672,1712691033042,-500.0,0.00019178,2]
[322018673,1712691033051,-534.98,0.00019178,2]
[322018674,1712691033060,-500.0,0.00019178,2]
[322018675,1712691033073,-500.0,0.00019178,2]
[322018676,1712691033083,-500.0,0.00019178,2]
[322018677,1712691033094,-500.0,0.00019178,2]
[322018678,1712691033103,-500.0,0.00019178,2]
[322018679,1712691033113,-500.0,0.00019178,2]
[322018680,1712691033122,-500.0,0.00019178,2]
[322018681,1712691033131,-500.0,0.00019178,2]
[322018682,1712691033141,-500.0,0.00019178,2]
[322018683,1712691033150,-500.0,0.00019178,2]
[322018684,1712691033159,-500.0,0.00019178,2]
[322018685,1712691033169,-500.0,0.00019178,2]
[322018686,1712691033178,-500.0,0.00019178,2]
[322018687,1712691033187,-527.9120799,0.00019178,2]
[322018688,1712691033196,-561.23,0.00019178,2]
[322018689,1712691033206,-500.0,0.00019178,2]
[322018690,1712691033215,-500.0,0.00019178,2]
[322018691,1712691033225,-597.11,0.00019178,2]
[322018692,1712691033234,-384.68353828,0.00019178,2]
[322018693,1712691033244,-513.96,0.00019178,2]
[322018694,1712691033254,-500.0,0.00019178,2]
[322018695,1712691033263,-617.84,0.00019178,2]
[322018696,1712691033273,-500.0,0.00019178,2]
[322018697,1712691033283,-500.0,0.00019178,2]
[322018698,1712691033292,-500.0,0.00019178,2]
[322018699,1712691033302,-500.0,0.00019178,2]
[322018700,1712691033311,-500.0,0.00019178,2]
[322018701,1712691033321,-500.0,0.00019178,2]
[322018702,1712691033331,-500.0,0.00019178,2]
[322018703,1712691033343,-500.0,0.00019178,2]
[322018704,1712691033353,-500.0,0.00019178,2]
[322018705,1712691033363,-500.0,0.00019178,2]
[322018706,1712691033372,-500.0,0.00019178,2]
[322018707,1712691033382,-500.0,0.00019178,2]
[322018708,1712691033392,-500.0,0.00019178,2]
[322018709,1712691033402,-500.0,0.00019178,2]
[322018710,1712691033412,-597.8,0.00019178,2]
[322018711,1712691033421,-640.8,0.00019178,2]
[322018712,1712691033431,-500.0,0.00019178,2]
[322018713,1712691033440,-526.97,0.00019178,2]
[322018714,1712691033449,-179.96425058,0.00019178,2]
[322018715,1712691033459,-608.73,0.00019178,2]
[322018716,1712691033470,-500.0,0.00019178,2]
[322018717,1712691033479,-537.97,0.00019178,2]
[322018718,1712691033489,-500.0,0.00019178,2]
[322018719,1712691033498,-500.0,0.00019178,2]
[322018720,1712691033508,-504.71,0.00019178,2]
[322018721,1712691033517,-500.0,0.00019178,2]
[322018722,1712691033526,-500.0,0.00019178,2]
[322018723,1712691033536,-577.69,0.00019178,2]
[322018724,1712691033545,-500.0,0.00019178,2]
[322018725,1712691033555,-500.0,0.00019178,2]
[322018726,1712691033564,-500.0,0.00019178,2]
[322018727,1712691033574,-565.89,0.00019178,2]
[322018728,1712691033584,-500.0,0.00019178,2]
[322018729,1712691033598,-500.0,0.00019178,2]
[322018730,1712691033612,-500.0,0.00019178,2]
[322018731,1712691033621,-500.0,0.00019178,2]
[322018732,1712691033631,-500.0,0.00019178,2]
[322018733,1712691033641,-500.0,0.00019178,2]
[322018734,1712691033651,-500.0,0.00019178,2]
[322018735,1712691033660,-500.0,0.00019178,2]
[322018736,1712691033670,-500.0,0.00019178,2]
[322018737,1712691033681,-500.0,0.00019178,2]
[322018738,1712691033690,-524.39,0.00019178,2]
[322018739,1712691033700,-500.0,0.00019178,2]
[322018740,1712691033709,-500.0,0.00019178,2]
[322018741,1712691033718,-500.0,0.00019178,2]
[322018742,1712691033728,-500.0,0.00019178,2]
[322018743,1712691033737,-500.0,0.00019178,2]
[322018744,1712691033747,-506.19,0.00019178,2]
[322018745,1712691033757,-500.0,0.00019178,2]
[322018746,1712691033768,-500.0,0.00019178,2]
[322018747,1712691033779,-500.0,0.00019178,2]
[322018748,1712691033790,-500.0,0.00019178,2]
[322018749,1712691033800,-500.0,0.00019178,2]
[322018750,1712691033810,-500.0,0.00019178,2]
[322018751,1712691033820,-500.0,0.00019178,2]
[322018752,1712691033831,-150.0,0.00019178,2]
[322018753,1712691033845,-500.0,0.00019178,2]
[322018754,1712691033860,-623.09,0.00019178,2]
[322018755,1712691033870,-500.0,0.00019178,2]
[322018756,1712691033880,-500.0,0.00019178,2]
[322018757,1712691033891,-500.0,0.00019178,2]
[322018758,1712691033900,-500.0,0.00019178,2]
[322018759,1712691033910,-500.0,0.00019178,2]
[322018760,1712691033920,-500.0,0.00019178,2]
[322018761,1712691033930,-580.35,0.00019178,2]
[322018762,1712691033939,-500.0,0.00019178,2]
[322018763,1712691033949,-576.22,0.00019178,2]
[322018764,1712691033958,-500.0,0.00019178,2]
[322018765,1712691033968,-500.0,0.00019178,2]
[322018766,1712691033977,-623.69,0.00019178,2]
[322018767,1712691033986,-500.0,0.00019178,2]
[322018768,1712691033995,-571.55,0.00019178,2]
[322018769,1712691034005,-500.0,0.00019178,2]
[322018770,1712691034014,-500.0,0.00019178,2]
[322018771,1712691034023,-500.0,0.00019178,2]
[322018772,1712691034032,-500.0,0.00019178,2]
[322018773,1712691034042,-500.0,0.00019178,2]
[322018774,1712691034052,-628.35,0.00019178,2]
[322018775,1712691034061,-500.0,0.00019178,2]
[322018776,1712691034070,-637.35,0.00019178,2]
[322018777,1712691034079,-505.32,0.00019178,2]
[322018778,1712691034089,-500.0,0.00019178,2]
[322018779,1712691034099,-500.0,0.00019178,2]
[322018780,1712691034108,-500.0,0.00019178,2]
[322018781,1712691034117,-500.0,0.00019178,2]
[322018782,1712691034127,-500.0,0.00019178,2]
[322018783,1712691034136,-500.0,0.00019178,2]
[322018784,1712691034145,-500.0,0.00019178,2]
[322018785,1712691034154,-500.0,0.00019178,2]
[322018786,1712691034163,-500.0,0.00019178,2]
[322018787,1712691034173,-503.78541303,0.00019178,2]
[322018788,1712691034182,-500.0,0.00019178,2]
[322018789,1712691034192,-500.0,0.00019178,2]
[322018790,1712691034201,-500.0,0.00019178,2]
[322018791,1712691034210,-500.0,0.00019178,2]
[322018792,1712691034219,-500.0,0.00019178,2]
[322018793,1712691034228,-500.0,0.00019178,2]
[322018794,1712691034237,-500.0,0.00019178,2]
[322018795,1712691034246,-500.0,0.00019178,2]
[322018796,1712691034256,-500.0,0.00019178,2]
[322018797,1712691034266,-500.0,0.00019178,2]
[322018798,1712691034276,-500.0,0.00019178,2]
[322018799,1712691034286,-508.37,0.00019178,2]
[322018800,1712691034296,-500.0,0.00019178,2]
[322018801,1712691034306,-629.97,0.00019178,2]
[322018802,1712691034316,-174.06462202,0.00019178,2]
[322018803,1712691034325,-195.52883529,0.00019178,2]
[322018804,1712691034335,-500.0,0.00019178,2]
[322018805,1712691034346,-500.0,0.00019178,2]
[322018806,1712691034356,-500.0,0.00019178,2]
[322018807,1712691034366,-500.0,0.00019178,2]
[322018808,1712691034375,-500.0,0.00019178,2]
[322018809,1712691034385,-500.0,0.00019178,2]
[322018810,1712691034394,-695.0,0.00019178,2]
[322018811,1712691034404,-500.0,0.00019178,2]
[322018812,1712691034413,-500.0,0.00019178,2]
[322018813,1712691034423,-500.0,0.00019178,2]
[322018814,1712691034432,-500.0,0.00019178,2]
[322018815,1712691034441,-500.0,0.00019178,2]
[322018816,1712691034450,-500.0,0.00019178,2]
[322018817,1712691034460,-500.0,0.00019178,2]
[322018818,1712691034469,-500.0,0.00019178,2]
[322018819,1712691034478,-500.0,0.00019178,2]
[322018820,1712691034487,-500.0,0.00019178,2]
[322018821,1712691034497,-741.57,0.00019178,2]
[322018822,1712691034506,-500.0,0.00019178,2]
[322018823,1712691034516,-500.0,0.00019178,2]
[322018824,1712691034525,-661.41,0.00019178,2]
[322018825,1712691034535,-500.0,0.00019178,2]
[322018826,1712691034544,-500.0,0.00019178,2]
[322018827,1712691034554,-500.0,0.00019178,2]
[322018828,1712691034563,-500.0,0.00019178,2]
[322018829,1712691034572,-500.0,0.00019178,2]
[322018830,1712691034581,-544.04,0.00019178,2]
[322018831,1712691034591,-500.0,0.00019178,2]
[322018832,1712691034600,-500.0,0.00019178,2]
[322018833,1712691034613,-500.0,0.00019178,2]
[322018834,1712691034623,-500.0,0.00019178,2]
[322018835,1712691034632,-693.39,0.00019178,2]
[322018836,1712691034643,-510.52,0.00019178,2]
[322018837,1712691034652,-4188.16,0.00019178,2]
[322018838,1712691034662,-417.058545,0.00019178,2]
[322018839,1712691034671,-500.0,0.00019178,2]
[322018840,1712691034681,-500.0,0.00019178,2]
[322018841,1712691034691,-516.51,0.00019178,2]
[322018842,1712691034700,-500.0,0.00019178,2]
[322018843,1712691034709,-500.0,0.00019178,2]
[322018844,1712691034719,-500.0,0.00019178,2]
[322018845,1712691034728,-500.0,0.00019178,2]
[322018846,1712691034737,-500.0,0.00019178,2]
[322018847,1712691034746,-500.0,0.00019178,2]
[322018848,1712691034755,-500.0,0.00019178,2]
[322018849,1712691034764,-500.0,0.00019178,2]
[322018850,1712691034773,-500.0,0.00019178,2]
[322018851,1712691034783,-500.0,0.00019178,2]
[322018852,1712691034792,-500.0,0.00019178,2]
[322018853,1712691034801,-500.0,0.00019178,2]
[322018854,1712691034811,-635.47,0.00019178,2]
[322018855,1712691034820,-500.0,0.00019178,2]
[322018856,1712691034830,-500.0,0.00019178,2]
[322018857,1712691034839,-1341.18,0.00019178,2]
[322018858,1712691034848,-573.36,0.00019178,2]
[322018859,1712691034858,-500.0,0.00019178,2]
[322018860,1712691034867,-810.77,0.00019178,2]
[322018861,1712691034877,-500.0,0.00019178,2]
[322018862,1712691034886,-500.0,0.00019178,2]
[322018863,1712691034895,-3519.24,0.00019178,2]
[322018864,1712691034905,-500.0,0.00019178,2]
[322018865,1712691034914,-500.0,0.00019178,2]
[322018866,1712691034923,-500.0,0.00019178,2]
[322018867,1712691034932,-500.0,0.00019178,2]
[322018868,1712691034941,-500.0,0.00019178,2]
[322018869,1712691034951,-715.23,0.00019178,2]
[322018870,1712691034960,-519.45,0.00019178,2]
[322018871,1712691034970,-500.0,0.00019178,2]
[322018872,1712691034979,-500.0,0.00019178,2]
[322018873,1712691034989,-500.0,0.00019178,2]
[322018874,1712691034999,-500.0,0.00019178,2]
[322018875,1712691035008,-500.0,0.00019178,2]
[322018876,1712691035018,-500.0,0.00019178,2]
[322018877,1712691035027,-346.43678847,0.00019178,2]
[322018878,1712691035036,-500.0,0.00019178,2]
[322018879,1712691035046,-500.0,0.00019178,2]
[322018880,1712691035055,-543.63,0.00019178,2]
[322018881,1712691035065,-598.43,0.00019178,2]
[322018882,1712691035074,-500.0,0.00019178,2]
[322018883,1712691035084,-500.0,0.00019178,2]